bitfinex/quotes_SOLUSD_20250102
["timestamp","ask_amount","ask_price","bid_price","bid_amount"]
[1735806476450,12.72081665,206.6,206.53,12.72081665]
[1735806477175,12.72081665,206.61,206.54,12.72081665]
[1735806477487,19.09431665,206.64,206.57,12.72081665]
[1735806477678,12.72081665,206.65,206.58,12.72081665]
[1735806478049,12.72081665,206.63,206.56,12.72081665]
[1735806480376,12.72081665,206.63,206.51,15.03089163]
[1735806480377,12.72081665,206.59,206.52,23.776884]
[1735806480577,12.72081665,206.58,206.51,14.30481665]
[1735806480879,12.72081665,206.56,206.49,12.72081665]
[1735806483191,12.72081665,206.57,206.49,12.72081665]
[1735806483595,20.0,206.56,206.5,12.72081665]
[1735806483793,12.1014,206.59,206.5,12.72081665]
[1735806483794,12.72081665,206.57,206.5,12.72081665]
[1735806483983,20.0,206.58,206.51,12.72081665]
[1735806484205,32.72081665,206.58,206.51,12.72081665]
[1735806484379,20.0,206.58,206.51,12.72081665]
[1735806484575,32.72081665,206.58,206.51,12.72081665]
[1735806485596,12.72081665,206.57,206.5,12.72081665]
[1735806486167,32.72081665,206.58,206.5,12.72081665]
[1735806486372,12.72081665,206.56,206.49,12.72081665]
[1735806486571,12.72081665,206.56,206.48,12.72081665]
[1735806487598,12.72081665,206.56,206.49,12.72081665]
[1735806488379,12.72081665,206.57,206.5,12.72081665]
[1735806488573,32.72081665,206.58,206.51,12.72081665]
[1735806488785,20.0,206.58,206.52,12.72081665]
[1735806489097,32.72081665,206.58,206.51,12.72081665]
[1735806489483,12.72081665,206.55,206.48,12.72081665]
[1735806489797,12.72081665,206.55,206.46,1.5063]
[1735806489798,12.72081665,206.52,206.46,1.5063]
[1735806490003,12.72081665,206.52,206.45,12.72081665]
[1735806491196,12.72081665,206.51,206.44,12.72081665]
[1735806491395,12.72081665,206.51,206.41,1.5565]
[1735806491396,12.72081665,206.48,206.41,1.5565]
[1735806491698,12.72081665,206.47,206.4,12.72081665]
[1735806491881,32.72081665,206.48,206.4,12.72081665]
[1735806493276,12.72081665,206.47,206.4,12.72081665]
[1735806493574,12.72081665,206.42,206.35,12.72081665]
[1735806494899,12.72081665,206.43,206.36,12.72081665]
[1735806495195,12.72081665,206.46,206.39,12.72081665]
[1735806495373,12.72081665,206.42,206.36,12.72081665]
[1735806495577,12.72081665,206.4,206.33,12.72081665]
[1735806496809,20.0,206.41,206.35,12.72081665]
[1735806497021,32.72081665,206.41,206.34,12.72081665]
[1735806497310,12.72081665,206.4,206.33,12.72081665]
[1735806497502,12.72081665,206.38,206.31,14.25981665]
[1735806497681,12.72081665,206.38,206.31,1.539]
[1735806497881,12.72081665,206.38,206.31,14.25981665]
[1735806498812,12.72081665,206.37,206.31,1.539]
[1735806499908,12.72081665,206.38,206.31,14.25981665]
[1735806502507,20.0,206.41,206.31,14.25981665]
[1735806502705,12.72081665,206.41,206.34,12.72081665]
[1735806502905,12.72081665,206.35,206.28,12.72081665]
[1735806503110,12.72081665,206.32,206.26,1.5403]
[1735806503282,12.72081665,206.31,206.26,1.5403]
[1735806503483,26.1919,206.35,206.21,15.915217]
[1735806503792,26.1919,206.35,206.21,1.6541]
[1735806503995,12.72081665,206.27,206.21,1.6541]
[1735806504804,12.72081665,206.28,206.21,1.6541]
[1735806505207,12.72081665,206.28,206.21,14.37491665]
[1735806505392,12.72081665,206.3,206.23,12.72081665]
[1735806506512,26.1919,206.35,206.21,1.6541]
[1735806506513,12.72081665,206.27,206.21,1.6541]
[1735806507588,26.1919,206.35,206.19,12.72081665]
[1735806507589,12.72081665,206.26,206.19,12.72081665]
[1735806507794,12.72081665,206.24,206.17,12.72081665]
[1735806509233,12.72081665,206.24,206.16,1.6109]
[1735806509411,12.72081665,206.3,206.16,14.33171665]
[1735806509412,12.72081665,206.23,206.16,14.33171665]
[1735806509714,12.72081665,206.22,206.16,1.6109]
[1735806510097,12.72081665,206.2,206.13,12.72081665]
[1735806510292,12.72081665,206.19,206.11,1.5663]
[1735806510611,12.72081665,206.18,206.11,1.5663]
[1735806510803,12.72081665,206.15,206.08,19.37101665]
[1735806511006,12.72081665,206.15,206.08,12.72081665]
[1735806511413,12.72081665,206.14,206.06,1.5062]
[1735806511616,12.72081665,206.14,206.07,12.72081665]
[1735806512302,12.72081665,206.13,206.02,0.72778236]
[1735806512509,12.72081665,206.12,206.05,12.72081665]
[1735806513014,12.72081665,206.12,206.03,23.776884]
[1735806513212,12.72081665,206.1,206.03,12.72081665]
[1735806513601,32.72081665,206.11,206.04,12.72081665]
[1735806513801,12.72081665,206.13,206.01,20.0]
[1735806514003,12.72081665,206.11,206.03,23.776884]
[1735806514209,12.72081665,206.11,206.05,23.776884]
[1735806514419,12.72081665,206.12,206.05,23.776884]
[1735806514814,12.72081665,206.12,206.05,12.72081665]
[1735806515207,12.72081665,206.13,206.06,12.72081665]
[1735806515411,12.72081665,206.14,206.07,36.49770065]
[1735806515612,12.72081665,206.15,206.08,12.72081665]
[1735806515921,12.72081665,206.12,206.04,12.72081665]
[1735806516123,36.12611665,206.2,206.03,12.72081665]
[1735806516124,12.72081665,206.11,206.03,12.72081665]
[1735806516516,12.72081665,206.11,206.04,12.72081665]
[1735806516704,12.72081665,206.12,206.05,12.72081665]
[1735806517806,12.72081665,206.15,206.07,12.72081665]
[1735806518002,12.72081665,206.11,206.04,12.72081665]
[1735806519424,12.72081665,206.12,206.05,12.72081665]
[1735806519623,12.72081665,206.12,206.04,12.72081665]
[1735806520137,12.72081665,206.12,206.05,12.72081665]
[1735806520314,12.72081665,206.13,206.06,12.72081665]
[1735806520619,12.72081665,206.14,206.07,23.776884]
[1735806520810,12.72081665,206.14,206.07,12.72081665]
[1735806521223,12.72081665,206.15,206.08,36.49770065]
[1735806521427,12.72081665,206.17,206.09,12.72081665]
[1735806521724,12.72081665,206.17,206.1,23.776884]
[1735806522123,12.72081665,206.17,206.1,12.72081665]
[1735806522332,12.72081665,206.19,206.12,36.49770065]
[1735806522522,12.1221,206.24,206.1,12.72081665]
[1735806522523,12.72081665,206.17,206.1,12.72081665]
[1735806522709,12.1221,206.24,206.08,1.551]
[1735806522710,12.72081665,206.16,206.09,12.72081665]
[1735806523109,12.72081665,206.15,206.09,23.776884]
[1735806523721,12.72081665,206.16,206.09,36.49770065]
[1735806524123,12.72081665,206.16,206.09,23.776884]
[1735806524328,12.72081665,206.15,206.08,14.27181665]
[1735806524627,12.72081665,206.16,206.08,14.27181665]
[1735806525014,12.72081665,206.15,206.08,14.27181665]
[1735806525318,12.72081665,206.14,206.08,1.551]
[1735806525726,12.72081665,206.15,206.08,1.551]
[1735806528336,12.72081665,206.14,206.08,1.551]
[1735806528533,12.72081665,206.15,206.09,23.776884]
[1735806528911,12.72081665,206.16,206.09,23.776884]
[1735806529214,12.72081665,206.16,206.09,36.49770065]
[1735806530137,12.72081665,206.17,206.09,36.49770065]
[1735806530436,12.72081665,206.16,206.09,36.49770065]
[1735806530934,12.72081665,206.17,206.1,12.72081665]
[1735806531341,12.72081665,206.16,206.09,36.49770065]
[1735806532125,12.72081665,206.17,206.1,12.72081665]
[1735806533636,12.72081665,206.18,206.1,12.72081665]
[1735806534239,8.15753401,206.17,206.09,8.15753401]
[1735806534429,8.15753401,206.15,206.08,1.551]
[1735806536053,8.15753401,206.14,206.08,1.551]
[1735806536241,12.75349328,206.12,206.03,1.6614]
[1735806536446,12.75349328,206.11,206.04,12.75349328]
[1735806538022,12.75349328,206.1,206.03,14.41489328]
[1735806539550,12.75349328,206.1,206.03,1.6614]
[1735806540320,12.75349328,206.09,206.03,1.6614]
[1735806543454,12.75349328,206.1,206.03,14.41489328]
[1735806543646,12.75349328,206.11,206.04,12.75349328]
[1735806544239,12.75349328,206.11,206.03,1.6614]
[1735806544434,12.75349328,206.11,206.04,12.75349328]
[1735806544948,12.75349328,206.1,206.03,14.41489328]
[1735806545456,12.75349328,206.1,206.03,1.6614]
[1735806546153,20.0,206.14,206.03,14.41489328]
[1735806546362,12.75349328,206.1,206.03,14.41489328]
[1735806548152,12.75349328,206.07,206.03,1.6614]
[1735806548357,12.75349328,206.1,206.03,14.41489328]
[1735806548564,12.75349328,206.11,206.04,36.53037728]
[1735806548756,12.75349328,206.1,206.03,14.41489328]
[1735806548978,12.75349328,206.1,206.03,1.6614]
[1735806549291,12.75349328,206.09,206.03,1.6614]
[1735806550640,12.75349328,206.1,206.03,14.41489328]
[1735806552249,12.75349328,206.1,206.03,1.6614]
[1735806552580,12.75349328,206.1,206.03,23.776884]
[1735806552767,12.75349328,206.08,206.03,23.776884]
[1735806552976,12.1265,206.16,206.02,23.776884]
[1735806552977,12.75349328,206.09,206.02,23.776884]
[1735806555056,12.1265,206.16,206.01,0.72787757]
[1735806555057,12.75349328,206.06,206.01,0.72787757]
[1735806555278,12.75349328,206.07,206.0,12.75349328]
[1735806556189,12.75349328,206.07,206.01,23.776884]
[1735806556395,8.1660815,206.07,206.01,23.776884]
[1735806557282,8.1660815,206.08,206.01,23.776884]
[1735806557624,8.1660815,206.08,206.01,31.9429655]
[1735806558081,8.1660815,206.08,206.01,23.776884]
[1735806559368,8.1660815,206.07,206.01,23.776884]
[1735806560570,8.1660815,206.08,206.01,23.776884]
[1735806561073,8.1660815,206.07,205.99,23.776884]
[1735806561247,8.1660815,206.07,205.99,31.9429655]
[1735806563059,12.1281,206.14,206.03,23.776884]
[1735806563269,12.1281,206.14,206.04,20.0]
[1735806563470,8.1660815,206.09,206.02,8.1660815]
[1735806563768,8.1660815,206.09,206.03,23.776884]
[1735806563981,8.1660815,206.09,206.03,24.50469858]
[1735806565676,8.1660815,206.1,206.03,24.50469858]
[1735806566072,8.1660815,206.12,206.06,23.776884]
[1735806566269,32.664326,206.2,206.08,23.776884]
[1735806566575,8.1660815,206.16,206.08,31.9429655]
[1735806566781,8.1660815,206.15,206.08,31.9429655]
[1735806568283,8.1660815,206.15,206.08,23.776884]
[1735806568458,6.0062,206.22,206.1,31.9429655]
[1735806568660,8.1660815,206.18,206.12,23.776884]
[1735806569066,8.1660815,206.17,206.1,8.1660815]
[1735806569267,8.1660815,206.18,206.1,8.1660815]
[1735806569766,8.1660815,206.18,206.1,8.89363353]
[1735806570679,8.1660815,206.18,206.11,31.9429655]
[1735806571060,8.1660815,206.18,206.11,23.776884]
[1735806572409,8.1660815,206.21,206.13,31.9429655]
[1735806572701,8.1660815,206.19,206.13,23.776884]
[1735806572876,8.1660815,206.21,206.14,2.28758298]
[1735806573495,6.3262,206.27,206.15,31.9429655]
[1735806573710,8.1660815,206.25,206.18,8.1660815]
[1735806575704,20.0,206.29,206.18,8.1660815]
[1735806575903,8.1660815,206.26,206.18,8.1660815]
[1735806577291,8.1660815,206.26,206.19,8.1660815]
[1735806578088,7.816,206.33,206.21,8.1660815]
[1735806578413,8.1660815,206.29,206.21,8.1660815]
[1735806578610,8.1660815,206.29,206.22,23.776884]
[1735806578922,8.1660815,206.3,206.23,8.1660815]
[1735806579212,8.1660815,206.29,206.23,1.605]
[1735806579521,20.0,206.33,206.23,1.605]
[1735806579704,8.1660815,206.29,206.23,1.605]
[1735806580610,8.1660815,206.3,206.23,9.7710815]
[1735806580842,8.1660815,206.31,206.23,9.7710815]
[1735806581518,8.0596,206.38,206.25,8.1660815]
[1735806581815,8.0596,206.38,206.27,8.1660815]
[1735806581816,8.1660815,206.34,206.27,8.1660815]
[1735806582513,8.1660815,206.34,206.26,8.1660815]
[1735806583218,8.1660815,206.33,206.26,8.1660815]
[1735806583445,8.1660815,206.32,206.25,8.1660815]
[1735806585818,8.1660815,206.33,206.25,8.1660815]
[1735806586018,8.0596,206.38,206.26,8.1660815]
[1735806586223,8.1660815,206.33,206.26,8.1660815]
[1735806587247,8.1660815,206.34,206.27,8.1660815]
[1735806587617,8.1660815,206.35,206.27,8.1660815]
[1735806588128,12.1128,206.4,206.24,24.50392932]
[1735806588333,6.2039,206.43,206.31,8.1660815]
[1735806588531,8.1660815,206.38,206.28,23.776884]
[1735806588827,8.1660815,206.37,206.3,8.1660815]
[1735806589737,8.1660815,206.38,206.31,8.1660815]
[1735806592611,8.1660815,206.37,206.3,8.1660815]
[1735806593444,12.1112,206.42,206.32,31.9429655]
[1735806593606,8.1660815,206.4,206.32,31.9429655]
[1735806595331,8.1660815,206.39,206.32,31.9429655]
[1735806596237,12.1112,206.42,206.32,31.9429655]
[1735806596578,8.1660815,206.43,206.36,8.1660815]
[1735806597032,12.1094,206.45,206.35,8.1660815]
[1735806597033,8.1660815,206.42,206.35,8.1660815]
[1735806597215,8.1660815,206.42,206.34,31.9429655]
[1735806598444,8.1660815,206.41,206.34,23.776884]
[1735806598661,8.1660815,206.42,206.34,31.9429655]
[1735806599942,12.1094,206.45,206.35,8.1660815]
[1735806600133,8.1660815,206.43,206.36,8.1660815]
[1735806600441,8.1660815,206.45,206.37,8.1660815]
[1735806600640,8.1660815,206.43,206.36,8.1660815]
[1735806600833,8.1660815,206.41,206.35,6.2967]
[1735806603225,8.1660815,206.4,206.31,1.6046]
[1735806603430,8.1660815,206.39,206.32,8.1660815]
[1735806605437,8.1660815,206.37,206.31,1.6046]
[1735806605952,8.1660815,206.36,206.31,1.6046]
[1735806606124,8.1660815,206.37,206.31,1.6046]
[1735806606332,82.2,206.46,206.33,23.776884]
[1735806606532,8.1660815,206.45,206.38,8.1660815]
[1735806607134,8.1660815,206.42,206.35,28.1660815]
[1735806607335,13.7532,206.49,206.34,8.1660815]
[1735806607336,8.1660815,206.41,206.34,8.1660815]
[1735806609461,12.1091,206.46,206.35,8.1660815]
[1735806609756,8.1660815,206.42,206.35,8.1660815]
[1735806609929,8.1660815,206.4,206.33,23.776884]
[1735806610134,8.1660815,206.4,206.33,31.9429655]
[1735806610861,12.1091,206.46,206.33,31.9429655]
[1735806611043,8.1660815,206.4,206.33,31.9429655]
[1735806612656,8.1660815,206.44,206.38,8.1660815]
[1735806613257,18.4621,206.5,206.39,23.776884]
[1735806613465,5.28214959,206.55,206.43,8.1660815]
[1735806613659,8.1660815,206.53,206.46,8.1660815]
[1735806613965,8.1660815,206.51,206.44,28.1660815]
[1735806614150,8.1660815,206.51,206.42,0.72638333]
[1735806614352,8.1660815,206.5,206.44,8.1660815]
[1735806615441,8.1660815,206.51,206.44,8.1660815]
[1735806615768,8.1660815,206.54,206.48,23.776884]
[1735806615952,8.1660815,206.52,206.47,1.6361]
[1735806616139,8.1660815,206.5,206.47,1.6361]
[1735806616644,8.1660815,206.51,206.47,1.6361]
[1735806617960,20.0,206.56,206.47,1.6361]
[1735806618251,8.1660815,206.52,206.47,1.6361]
[1735806618562,8.1660815,206.57,206.51,8.1660815]
[1735806618890,8.1660815,206.58,206.51,8.1660815]
[1735806619068,8.1660815,206.58,206.51,8.89221805]
[1735806619562,8.1660815,206.59,206.52,8.1660815]
[1735806619765,6.2978,206.61,206.53,8.1660815]
[1735806620061,6.2978,206.61,206.56,8.1660815]
[1735806620862,6.2978,206.61,206.55,32.66894931]
[1735806622862,14.4638815,206.61,206.55,23.776884]
[1735806623361,6.2978,206.61,206.55,31.9429655]
[1735806623740,6.2978,206.61,206.56,8.1660815]
[1735806624055,6.2978,206.61,206.55,28.1660815]
[1735806624258,8.1660815,206.62,206.56,23.776884]
[1735806624857,12.0971,206.67,206.57,8.1660815]
[1735806624858,8.1660815,206.64,206.57,8.1660815]
[1735806625660,20.0,206.7,206.58,23.776884]
[1735806625857,12.0924,206.74,206.6,31.9429655]
[1735806626053,8.1660815,206.7,206.63,8.1660815]
[1735806626945,8.1660815,206.67,206.6,8.1660815]
[1735806627260,8.1660815,206.65,206.58,8.1660815]
[1735806627965,8.1660815,206.64,206.6,20.0]
[1735806628853,8.1660815,206.64,206.57,31.9429655]
[1735806629159,8.1660815,206.63,206.56,8.1660815]
[1735806629348,8.1660815,206.62,206.56,23.776884]
[1735806629859,8.1660815,206.63,206.56,31.9429655]
[1735806630056,12.0929,206.74,206.62,23.776884]
[1735806630265,8.1660815,206.68,206.62,23.776884]
[1735806632366,106.3806,206.78,206.63,8.1660815]
[1735806632367,12.0907,206.77,206.63,8.1660815]
[1735806632554,8.1660815,206.7,206.64,23.776884]
[1735806633471,106.3806,206.78,206.6,20.0]
[1735806633472,8.1660815,206.68,206.6,20.0]
[1735806633642,8.1660815,206.66,206.55,154.990973]
[1735806633861,8.1660815,206.63,206.56,0.72588263]
[1735806634163,8.1660815,206.63,206.49,16.5096065]
[1735806634164,8.1660815,206.61,206.54,8.1660815]
[1735806634370,8.1660815,206.61,206.53,20.72596452]
[1735806634675,8.1660815,206.61,206.54,8.1660815]
[1735806635075,8.1660815,206.61,206.55,23.776884]
[1735806635277,6.4981,206.8,206.66,5.0]
[1735806635450,8.1660815,206.77,206.67,7.13179962]
[1735806635765,8.1660815,206.79,206.72,23.776884]
[1735806636262,12.67137681,206.79,206.72,23.776884]
[1735806636460,12.67137681,206.82,206.76,23.776884]
[1735806636767,18.97667681,206.85,206.78,23.776884]
[1735806637068,18.97667681,206.85,206.78,36.44826081]
[1735806637649,6.3053,206.85,206.78,36.44826081]
[1735806638056,6.3053,206.85,206.79,12.67137681]
[1735806638248,6.3053,206.85,206.8,12.67137681]
[1735806638469,12.67137681,206.88,206.8,12.67137681]
[1735806638843,12.67137681,206.88,206.81,37.17339024]
[1735806639046,6.3475,206.9,206.83,12.67137681]
[1735806639047,12.67137681,206.9,206.83,12.67137681]
[1735806639249,12.67137681,206.91,206.84,12.67137681]
[1735806640260,12.0765,207.02,206.89,12.67137681]
[1735806640576,12.0765,207.02,206.9,12.67137681]
[1735806640577,11.17137681,206.98,206.9,12.67137681]
[1735806641076,12.0765,207.02,206.9,12.67137681]
[1735806641379,12.67137681,206.96,206.88,12.67137681]
[1735806641944,12.67137681,206.96,206.89,12.67137681]
[1735806642277,12.67137681,206.96,206.88,12.67137681]
[1735806642462,12.67137681,206.95,206.88,12.67137681]
[1735806642769,12.67137681,206.95,206.81,0.72486874]
[1735806642770,12.67137681,206.96,206.9,23.776884]
[1735806642975,12.67137681,206.97,206.9,23.776884]
[1735806643771,12.67137681,206.97,206.9,12.67137681]
[1735806643965,12.67137681,206.97,206.9,36.44826081]
[1735806644675,12.67137681,206.96,206.89,12.67137681]
[1735806645861,12.0765,207.02,206.89,23.776884]
[1735806645862,12.67137681,206.95,206.89,23.776884]
[1735806646064,12.67137681,206.9,206.83,0.72481215]
[1735806646268,12.67137681,206.86,206.78,12.67137681]
[1735806646476,12.67137681,206.86,206.79,12.67137681]
[1735806646661,12.67137681,206.86,206.8,23.776884]
[1735806646974,12.67137681,206.87,206.8,23.776884]
[1735806647149,12.67137681,206.87,206.79,12.67137681]
[1735806647346,12.67137681,206.84,206.77,12.67137681]
[1735806647656,12.67137681,206.83,206.76,12.67137681]
[1735806647856,12.67137681,206.83,206.77,23.776884]
[1735806648164,12.67137681,206.83,206.75,12.67137681]
[1735806648363,12.67137681,206.83,206.76,12.67137681]
[1735806649083,31.24597681,206.9,206.74,12.67137681]
[1735806649084,12.67137681,206.81,206.74,12.67137681]
[1735806649376,12.67137681,206.81,206.75,23.776884]
[1735806649620,12.0851,206.87,206.75,36.44826081]
[1735806649621,12.67137681,206.82,206.75,36.44826081]
[1735806649961,12.67137681,206.85,206.79,23.776884]
[1735806650282,12.67137681,206.86,206.79,36.44826081]
[1735806650665,12.67137681,206.86,206.8,0.72516225]
[1735806650859,12.67137681,206.87,206.81,23.776884]
[1735806651557,12.67137681,206.88,206.81,36.44826081]
[1735806651763,12.67137681,206.92,206.85,12.67137681]
[1735806651970,12.67137681,206.92,206.87,23.776884]
[1735806652164,12.67137681,206.92,206.85,12.67137681]
[1735806652386,12.67137681,206.91,206.84,12.67137681]
[1735806652562,12.67137681,206.9,206.84,23.776884]
[1735806652875,12.67137681,206.88,206.81,13.3964124]
[1735806653080,12.67137681,206.87,206.8,12.67137681]
[1735806653256,12.67137681,206.86,206.74,23.776884]
[1735806653454,12.0802,206.95,206.7,43.56027681]
[1735806653455,12.67137681,206.85,206.78,12.67137681]
[1735806653655,12.67137681,206.9,206.71,0.72524821]
[1735806653656,12.67137681,206.82,206.71,0.72524821]
[1735806653882,12.67137681,206.8,206.73,12.67137681]
[1735806654916,12.67137681,206.8,206.74,23.776884]
[1735806655280,12.67137681,206.81,206.74,12.67137681]
[1735806655876,12.67137681,206.8,206.74,23.776884]
[1735806656094,12.67137681,206.79,206.72,12.67137681]
[1735806656388,12.67137681,206.78,206.72,23.776884]
[1735806656686,12.67137681,206.77,206.72,23.776884]
[1735806656891,12.67137681,206.79,206.72,12.67137681]
[1735806657076,12.67137681,206.79,206.73,12.67137681]
[1735806657275,12.67137681,206.8,206.73,12.67137681]
[1735806657993,12.67137681,206.78,206.71,37.17374496]
[1735806658509,12.67137681,206.75,206.67,13.39686126]
[1735806659378,12.67137681,206.75,206.68,12.67137681]
[1735806659666,12.67137681,206.74,206.68,36.44826081]
[1735806659867,12.67137681,206.73,206.67,0.72557444]
[1735806660087,12.67137681,206.8,206.63,12.671376]
[1735806660088,12.67137681,206.71,206.65,12.67137681]
[1735806660269,12.67137681,206.7,206.63,13.39697907]
[1735806660469,12.67137681,206.69,206.63,0.72560226]
[1735806660668,12.67137681,206.67,206.6,12.67137681]
[1735806660867,12.67137681,206.67,206.56,2.33226531]
[1735806660868,12.67137681,206.7,206.64,36.44826081]
[1735806661233,6.1423,206.78,206.66,23.776884]
[1735806661508,1.5532,206.82,206.72,23.776884]
[1735806661979,12.67137681,206.78,206.72,23.776884]
[1735806662512,12.67137681,206.77,206.7,12.67137681]
[1735806662803,12.67137681,206.75,206.68,32.67137681]
[1735806662986,12.67137681,206.74,206.68,32.67137681]
[1735806663189,12.67137681,206.74,206.69,23.776884]
[1735806663505,12.67137681,206.73,206.66,12.67137681]
[1735806663709,12.67137681,206.72,206.66,12.67137681]
[1735806663911,12.67137681,206.72,206.67,23.776884]
[1735806664425,12.67137681,206.74,206.67,12.67137681]
[1735806665090,12.67137681,206.73,206.66,36.44826081]
[1735806666007,12.0903,206.78,206.65,12.67137681]
[1735806666008,12.67137681,206.72,206.65,12.67137681]
[1735806666182,12.67137681,206.68,206.61,13.39703595]
[1735806666809,12.67137681,206.68,206.62,23.776884]
[1735806667314,12.67137681,206.67,206.62,23.776884]
[1735806667633,12.67137681,206.71,206.64,12.67137681]
[1735806668013,12.67137681,206.71,206.63,23.776884]
[1735806668014,12.67137681,206.7,206.63,36.44826081]
[1735806668179,12.67137681,206.7,206.58,23.776884]
[1735806668384,20.29087055,206.7,206.63,20.29087055]
[1735806668588,20.29087055,206.69,206.62,20.29087055]
[1735806669192,20.29087055,206.65,206.58,20.29087055]
[1735806669399,20.29087055,206.64,206.57,20.29087055]
[1735806670014,20.29087055,206.63,206.57,23.776884]
[1735806670892,20.29087055,206.63,206.56,20.29087055]
[1735806671202,20.29087055,206.63,206.57,23.776884]
[1735806671508,20.29087055,206.64,206.57,44.06775455]
[1735806671717,20.29087055,206.67,206.6,20.29087055]
[1735806671896,20.29087055,206.67,206.61,23.776884]
[1735806672283,20.29087055,206.67,206.55,0.72585028]
[1735806672284,20.29087055,206.69,206.59,20.0]
[1735806672595,20.29087055,206.71,206.64,20.29087055]
[1735806673706,20.29087055,206.7,206.63,20.29087055]
[1735806675615,26.50297055,206.72,206.65,20.29087055]
[1735806675914,20.29087055,206.74,206.67,20.29087055]
[1735806677054,20.29087055,206.68,206.57,1.6481]
[1735806677325,20.29087055,206.68,206.54,25.999798]
[1735806677326,20.29087055,206.62,206.55,21.01681929]
[1735806677528,20.29087055,206.6,206.51,2.37409446]
[1735806677821,20.29087055,206.59,206.52,20.29087055]
[1735806677994,20.29087055,206.6,206.53,23.776884]
[1735806678195,20.29087055,206.6,206.52,20.29087055]
[1735806678414,20.29087055,206.58,206.51,22.66496501]
[1735806678620,20.29087055,206.56,206.5,6.1851]
[1735806678924,12.0977,206.65,206.5,6.1851]
[1735806678925,20.29087055,206.55,206.5,6.1851]
[1735806679145,20.29087055,206.53,206.46,20.29087055]
[1735806679624,20.29087055,206.6,206.46,0.72632489]
[1735806679625,20.29087055,206.55,206.46,0.72632489]
[1735806679914,20.29087055,206.55,206.49,20.29087055]
[1735806680301,20.29087055,206.55,206.48,20.29087055]
[1735806680520,20.29087055,206.54,206.47,20.29087055]
[1735806680707,20.29087055,206.53,206.46,20.29087055]
[1735806680903,20.29087055,206.52,206.45,20.29087055]
[1735806681412,20.29087055,206.51,206.44,20.29087055]
[1735806682622,20.29087055,206.5,206.43,20.29087055]
[1735806682820,20.29087055,206.52,206.46,20.29087055]
[1735806682996,6.6183,206.54,206.47,20.29087055]
[1735806682997,26.90917055,206.54,206.47,20.29087055]
[1735806684521,20.29087055,206.56,206.49,20.29087055]
[1735806689004,20.29087055,206.55,206.48,20.29087055]
[1735806689733,20.29087055,206.52,206.45,20.29087055]
[1735806689925,20.29087055,206.51,206.44,20.29087055]
[1735806690110,20.29087055,206.51,206.45,23.776884]
[1735806690311,20.29087055,206.5,206.43,20.29087055]
[1735806690625,20.29087055,206.47,206.4,20.29087055]
[1735806690918,20.29087055,206.46,206.41,20.0]
[1735806691116,20.29087055,206.46,206.4,23.776884]
[1735806691537,20.29087055,206.45,206.38,20.29087055]
[1735806691705,20.29087055,206.44,206.37,20.29087055]
[1735806692328,20.29087055,206.43,206.36,20.29087055]
[1735806692504,20.29087055,206.42,206.35,20.29087055]
[1735806694112,20.29087055,206.44,206.37,20.29087055]
[1735806695624,20.29087055,206.43,206.36,20.29087055]
[1735806695841,20.29087055,206.41,206.34,21.92667055]
[1735806696126,20.29087055,206.4,206.33,20.29087055]
[1735806696342,20.29087055,206.38,206.31,40.29087055]
[1735806696507,20.29087055,206.4,206.33,20.29087055]
[1735806697630,20.29087055,206.39,206.32,20.29087055]
[1735806698443,20.29087055,206.38,206.31,40.29087055]
[1735806698610,20.29087055,206.36,206.29,20.29087055]
[1735806698809,20.29087055,206.35,206.28,20.29087055]
[1735806699330,20.29087055,206.35,206.3,20.0]
[1735806699503,20.29087055,206.35,206.28,20.29087055]
[1735806701129,20.29087055,206.35,206.29,23.776884]
[1735806701328,20.29087055,206.37,206.29,44.06775455]
[1735806701519,20.29087055,206.36,206.29,44.06775455]
[1735806702521,20.29087055,206.36,206.29,23.776884]
[1735806702711,20.29087055,206.36,206.29,44.06775455]
[1735806704026,20.29087055,206.37,206.3,20.29087055]
[1735806704330,20.29087055,206.36,206.29,20.29087055]
[1735806705933,20.29087055,206.37,206.3,20.29087055]
[1735806706247,6.6534,206.47,206.35,20.29087055]
[1735806706248,20.29087055,206.41,206.35,20.29087055]
[1735806706616,20.29087055,206.42,206.35,20.29087055]
[1735806706951,20.29087055,206.43,206.37,20.29087055]
[1735806707741,20.29087055,206.44,206.37,20.29087055]
[1735806708648,6.3314,206.48,206.4,20.29087055]
[1735806708851,6.3314,206.48,206.41,23.776884]
[1735806708852,20.29087055,206.47,206.41,23.776884]
[1735806709140,20.29087055,206.43,206.36,20.29087055]
[1735806709318,20.29087055,206.43,206.37,23.776884]
[1735806710825,20.29087055,206.44,206.37,44.06775455]
[1735806712543,20.29087055,206.45,206.38,20.29087055]
[1735806713333,20.29087055,206.42,206.35,20.29087055]
[1735806713543,20.29087055,206.41,206.34,21.92607055]
[1735806713745,20.29087055,206.4,206.33,20.29087055]
[1735806713950,20.29087055,206.39,206.32,20.29087055]